[Event "*** Titled Tuesday Blitz"]
[Site "Chess.com"]
[Date "2018.12.04"]
[Round "9"]
[White "Jenia84"]
[Black "TheBigBadChessDad"]
[Result "1-0"]
[WhiteElo "2233"]
[BlackElo "2275"]
[TimeControl "180+2"]
[EndTime "15:10:48 PST"]
[Termination "Jenia84 won by resignation"]

1. e4 {[%clk 0:02:59]} 1... e5 {[%clk 0:02:59.6]} 2. Nf3 {[%clk 0:02:59.1]} 2...
Nc6 {[%clk 0:03:00.7]} 3. Bb5 {[%clk 0:02:59.8]} 3... a6 {[%clk 0:03:02.1]} 4.
Ba4 {[%clk 0:03:00]} 4... d6 {[%clk 0:03:03.5]} 5. d3 {[%clk 0:02:57.9]} 5... f5
{[%clk 0:03:02.2]} 6. exf5 {[%clk 0:02:57.1]} 6... Bxf5 {[%clk 0:03:02.5]} 7.
Nc3 {[%clk 0:02:54.5]} 7... Nf6 {[%clk 0:03:03.3]} 8. Qe2 {[%clk 0:02:54.2]}
8... Be7 {[%clk 0:03:04.1]} 9. Ne4 {[%clk 0:02:53.8]} 9... O-O {[%clk
0:03:02.6]} 10. Bg5 {[%clk 0:02:47.6]} 10... Kh8 {[%clk 0:02:57.2]} 11. Nxf6
{[%clk 0:02:47.6]} 11... gxf6 {[%clk 0:02:54]} 12. Bh6 {[%clk 0:02:47.3]} 12...
Rg8 {[%clk 0:02:54.2]} 13. O-O-O {[%clk 0:02:46.5]} 13... Bf8 {[%clk 0:02:40.8]}
14. Bxf8 {[%clk 0:02:43.6]} 14... Qxf8 {[%clk 0:02:40.9]} 15. Bxc6 {[%clk
0:02:43.7]} 15... bxc6 {[%clk 0:02:41.3]} 16. g3 {[%clk 0:02:41.3]} 16... Qh6+
{[%clk 0:02:39.8]} 17. Qe3 {[%clk 0:02:36]} 17... Qh5 {[%clk 0:02:27]} 18. Nh4
{[%clk 0:02:34.5]} 18... Be6 {[%clk 0:02:25.5]} 19. f4 {[%clk 0:02:33.9]} 19...
Bd5 {[%clk 0:02:12.2]} 20. Rhf1 {[%clk 0:02:25.2]} 20... Rge8 {[%clk 0:02:11.6]}
21. fxe5 {[%clk 0:02:23.7]} 21... Qxe5 {[%clk 0:01:49.6]} 22. Qxe5 {[%clk
0:02:23]} 22... fxe5 {[%clk 0:01:49.3]} 23. Kd2 {[%clk 0:02:16.7]} 23... a5
{[%clk 0:01:42.6]} 24. b3 {[%clk 0:02:13.6]} 24... a4 {[%clk 0:01:43.2]} 25. Ke3
{[%clk 0:01:54.5]} 25... c5 {[%clk 0:01:39.5]} 26. c4 {[%clk 0:01:51.1]} 26...
Be6 {[%clk 0:01:34.2]} 27. Rf6 {[%clk 0:01:48.6]} 27... axb3 {[%clk 0:01:33.3]}
28. axb3 {[%clk 0:01:48.7]} 28... Rab8 {[%clk 0:01:21.5]} 29. Rb1 {[%clk
0:01:41.1]} 29... Kg7 {[%clk 0:01:21]} 30. Rf2 {[%clk 0:01:38.4]} 30... Rf8
{[%clk 0:01:16.1]} 31. Rxf8 {[%clk 0:01:34.1]} 31... Kxf8 {[%clk 0:01:17]} 32.
Nf3 {[%clk 0:01:34.2]} 32... h6 {[%clk 0:01:15.6]} 33. Nd2 {[%clk 0:01:33.3]}
33... Ke7 {[%clk 0:01:14.5]} 34. Ra1 {[%clk 0:01:33.3]} 34... Kd7 {[%clk
0:01:07.6]} 35. Rf1 {[%clk 0:01:33]} 35... Ke7 {[%clk 0:01:07]} 36. Rg1 {[%clk
0:01:25.6]} 36... h5 {[%clk 0:01:07.4]} 37. Ra1 {[%clk 0:01:19.4]} 37... Rh8
{[%clk 0:01:02.2]} 38. Ra7 {[%clk 0:01:19.3]} 38... Kd7 {[%clk 0:01:03.1]} 39.
Ne4 {[%clk 0:01:17.6]} 39... h4 {[%clk 0:01:02.3]} 40. Nf6+ {[%clk 0:01:10.1]}
40... Kc6 {[%clk 0:00:54.9]} 41. Ra1 {[%clk 0:00:55.7]} 41... hxg3 {[%clk
0:00:45.8]} 42. hxg3 {[%clk 0:00:55]} 42... Rb8 {[%clk 0:00:35.2]} 43. Rb1
{[%clk 0:00:50.9]} 43... Rf8 {[%clk 0:00:36]} 44. Rf1 {[%clk 0:00:46.9]} 44...
Bg4 {[%clk 0:00:26.9]} 45. Rf2 {[%clk 0:00:39.2]} 45... Bd1 {[%clk 0:00:27.8]}
46. g4 {[%clk 0:00:39.6]} 46... Bxb3 {[%clk 0:00:17.9]} 47. g5 {[%clk
0:00:40.4]} 47... Rh8 {[%clk 0:00:13.2]} 48. g6 {[%clk 0:00:39]} 48... Rh3+
{[%clk 0:00:14.3]} 49. Rf3 {[%clk 0:00:38.1]} 49... Rxf3+ {[%clk 0:00:05.9]} 50.
Kxf3 {[%clk 0:00:38.6]} 50... e4+ {[%clk 0:00:06.8]} 51. Kxe4 {[%clk 0:00:34.9]}
51... d5+ {[%clk 0:00:05.9]} 52. cxd5+ {[%clk 0:00:34.2]} 52... Kd6 {[%clk
0:00:06.9]} 53. g7 {[%clk 0:00:34.1]} 1-0

[Event "*** Titled Tuesday Blitz"]
[Site "Chess.com"]
[Date "2018.12.04"]
[Round "9"]
[White "Orest_Vovk"]
[Black "Keaton87"]
[Result "0-1"]
[WhiteElo "2426"]
[BlackElo "2550"]
[TimeControl "180+2"]
[EndTime "15:10:54 PST"]
[Termination "Keaton87 won by resignation"]

1. g4 {[%clk 0:03:01.9]} 1... d5 {[%clk 0:02:59.3]} 2. Bg2 {[%clk 0:03:02.2]}
2... c6 {[%clk 0:03:00.7]} 3. h3 {[%clk 0:03:03.1]} 3... e5 {[%clk 0:03:00.7]}
4. d4 {[%clk 0:03:04.4]} 4... exd4 {[%clk 0:03:00.2]} 5. Qxd4 {[%clk 0:03:04.7]}
5... Nd7 {[%clk 0:03:01.5]} 6. Nf3 {[%clk 0:03:04.9]} 6... Ngf6 {[%clk
0:02:54.8]} 7. Qe3+ {[%clk 0:03:03.9]} 7... Be7 {[%clk 0:02:48.9]} 8. g5 {[%clk
0:03:02]} 8... Nh5 {[%clk 0:02:48.3]} 9. O-O {[%clk 0:03:00]} 9... O-O {[%clk
0:02:48.9]} 10. Nd4 {[%clk 0:02:53.2]} 10... g6 {[%clk 0:02:31.7]} 11. Bf3
{[%clk 0:02:46.1]} 11... Ng7 {[%clk 0:02:27.6]} 12. Qf4 {[%clk 0:02:41]} 12...
Nc5 {[%clk 0:02:24.9]} 13. h4 {[%clk 0:02:32.9]} 13... Bd6 {[%clk 0:02:25.2]}
14. Qd2 {[%clk 0:02:31]} 14... Bh3 {[%clk 0:02:21]} 15. Re1 {[%clk 0:02:24.8]}
15... Qe7 {[%clk 0:02:18.6]} 16. Qe3 {[%clk 0:02:22.9]} 16... Qd7 {[%clk
0:02:15.6]} 17. Nb3 {[%clk 0:02:11.6]} 17... Ne4 {[%clk 0:02:04.5]} 18. Nc3
{[%clk 0:01:28.1]} 18... Nf5 {[%clk 0:01:48.7]} 19. Qd3 {[%clk 0:01:29.1]} 19...
Nxc3 {[%clk 0:01:43.9]} 20. bxc3 {[%clk 0:01:21.7]} 20... Nxh4 {[%clk
0:01:44.8]} 21. c4 {[%clk 0:01:01.8]} 21... dxc4 {[%clk 0:01:09.9]} 22. Qxc4
{[%clk 0:00:59.4]} 22... Nxf3+ {[%clk 0:01:11.2]} 23. exf3 {[%clk 0:00:58.5]}
23... Qf5 {[%clk 0:01:04.8]} 24. Nd4 {[%clk 0:00:41.1]} 24... Qc5 {[%clk
0:00:53.4]} 25. Qxc5 {[%clk 0:00:36.8]} 25... Bxc5 {[%clk 0:00:55.3]} 26. Be3
{[%clk 0:00:37.2]} 26... Bb6 {[%clk 0:00:46.4]} 27. Kh2 {[%clk 0:00:36.5]} 27...
Bd7 {[%clk 0:00:46.1]} 28. Kg3 {[%clk 0:00:37.1]} 28... Rad8 {[%clk 0:00:43.1]}
29. Rh1 {[%clk 0:00:35.9]} 29... c5 {[%clk 0:00:40.2]} 30. Ne2 {[%clk
0:00:32.4]} 30... f6 {[%clk 0:00:36.1]} 31. gxf6 {[%clk 0:00:28.3]} 31... Bc6
{[%clk 0:00:31.2]} 32. Bg5 {[%clk 0:00:24.7]} 32... Rd5 {[%clk 0:00:28.5]} 33.
f4 {[%clk 0:00:22.1]} 33... Rd2 {[%clk 0:00:28.6]} 34. Rhe1 {[%clk 0:00:21]}
34... Rxc2 {[%clk 0:00:26.6]} 35. Ng1 {[%clk 0:00:18]} 35... Bd8 {[%clk
0:00:25.1]} 36. Rad1 {[%clk 0:00:17.6]} 36... Bxf6 {[%clk 0:00:23]} 37. Bxf6
{[%clk 0:00:18.5]} 37... Rxf6 {[%clk 0:00:24.9]} 38. Rd8+ {[%clk 0:00:19.6]}
38... Rf8 {[%clk 0:00:25.9]} 39. Rxf8+ {[%clk 0:00:19.1]} 39... Kxf8 {[%clk
0:00:27.8]} 40. Nh3 {[%clk 0:00:20.4]} 40... h6 {[%clk 0:00:27.8]} 41. f3 {[%clk
0:00:20.5]} 41... Rxa2 {[%clk 0:00:27.7]} 42. Re3 {[%clk 0:00:21.1]} 42... b5
{[%clk 0:00:27.4]} 43. Nf2 {[%clk 0:00:22.5]} 43... b4 {[%clk 0:00:28.5]} 44.
Re6 {[%clk 0:00:22.7]} 44... Bd5 {[%clk 0:00:26.1]} 45. Rd6 {[%clk 0:00:21.5]}
45... Bf7 {[%clk 0:00:18.7]} 46. Nd3 {[%clk 0:00:18.5]} 46... Rd2 {[%clk
0:00:16.9]} 47. Rd7 {[%clk 0:00:12.9]} 47... c4 {[%clk 0:00:15.7]} 48. Ne5
{[%clk 0:00:10.3]} 48... Rxd7 {[%clk 0:00:16.2]} 49. Nxd7+ {[%clk 0:00:12.2]}
49... Ke7 {[%clk 0:00:17.5]} 50. Ne5 {[%clk 0:00:13.1]} 50... b3 {[%clk
0:00:17.5]} 51. Nc6+ {[%clk 0:00:12.2]} 51... Kd6 {[%clk 0:00:17.6]} 52. Nb4
{[%clk 0:00:12.9]} 52... a5 {[%clk 0:00:17.2]} 0-1

[Event "*** Titled Tuesday Blitz"]
[Site "Chess.com"]
[Date "2018.12.04"]
[Round "9"]
[White "Yeytruyol"]
[Black "abubakrtagelsir"]
[Result "1-0"]
[WhiteElo "2463"]
[BlackElo "2281"]
[TimeControl "180+2"]
[EndTime "15:11:28 PST"]
[Termination "Yeytruyol won on time"]

1. e4 {[%clk 0:03:00.2]} 1... d6 {[%clk 0:02:58.2]} 2. d4 {[%clk 0:03:00.1]}
2... Nf6 {[%clk 0:02:59.3]} 3. Nc3 {[%clk 0:03:00.2]} 3... g6 {[%clk 0:03:00.1]}
4. f4 {[%clk 0:03:00]} 4... Bg7 {[%clk 0:02:58.4]} 5. Nf3 {[%clk 0:03:01.5]}
5... c5 {[%clk 0:02:58.4]} 6. Bb5+ {[%clk 0:02:57]} 6... Bd7 {[%clk 0:02:57.6]}
7. e5 {[%clk 0:02:56.6]} 7... Ng4 {[%clk 0:02:58.5]} 8. e6 {[%clk 0:02:54.3]}
8... Bxb5 {[%clk 0:02:56.5]} 9. exf7+ {[%clk 0:02:49.6]} 9... Kf8 {[%clk
0:02:56.4]} 10. Nxb5 {[%clk 0:02:37.6]} 10... Qa5+ {[%clk 0:02:56.8]} 11. Nc3
{[%clk 0:02:38.6]} 11... cxd4 {[%clk 0:02:57]} 12. Nxd4 {[%clk 0:02:37.6]} 12...
Kxf7 {[%clk 0:02:56.5]} 13. O-O {[%clk 0:02:30.4]} 13... Qc5 {[%clk 0:02:53.7]}
14. Qxg4 {[%clk 0:02:31]} 14... Bxd4+ {[%clk 0:02:52.8]} 15. Kh1 {[%clk
0:02:29.5]} 15... Bxc3 {[%clk 0:02:53.6]} 16. bxc3 {[%clk 0:02:29.1]} 16... Qf5
{[%clk 0:02:54.4]} 17. Qf3 {[%clk 0:02:26.7]} 17... Nc6 {[%clk 0:02:53.7]} 18.
Rb1 {[%clk 0:02:27.8]} 18... Rab8 {[%clk 0:02:50.3]} 19. c4 {[%clk 0:02:08]}
19... h5 {[%clk 0:02:45.9]} 20. Bb2 {[%clk 0:02:06.1]} 20... Rhf8 {[%clk
0:02:45.2]} 21. Rbe1 {[%clk 0:02:03.4]} 21... Ke8 {[%clk 0:02:43.1]} 22. Qe2
{[%clk 0:01:58]} 22... Kd7 {[%clk 0:02:38.2]} 23. Rf3 {[%clk 0:01:58.9]} 23...
Rf7 {[%clk 0:02:34.8]} 24. c5 {[%clk 0:01:51.7]} 24... Rbf8 {[%clk 0:02:22.6]}
25. cxd6 {[%clk 0:01:48]} 25... exd6 {[%clk 0:02:22.2]} 26. Qd2 {[%clk
0:01:40.8]} 26... Re7 {[%clk 0:02:08.8]} 27. Rxe7+ {[%clk 0:01:38.6]} 27... Nxe7
{[%clk 0:02:06.6]} 28. Be5 {[%clk 0:01:39.3]} 28... Nc8 {[%clk 0:02:03.8]} 29.
h3 {[%clk 0:01:29.6]} 29... Qe4 {[%clk 0:01:56.4]} 30. Re3 {[%clk 0:01:26.8]}
30... Qc6 {[%clk 0:01:40.1]} 31. Rc3 {[%clk 0:01:20.1]} 31... Qb5 {[%clk
0:01:35.3]} 32. Kh2 {[%clk 0:01:16.8]} 32... Ke6 {[%clk 0:01:25.7]} 33. Rxc8
{[%clk 0:01:00.3]} 33... Rxc8 {[%clk 0:01:25.4]} 34. Qxd6+ {[%clk 0:00:58]}
34... Kf5 {[%clk 0:01:25.8]} 35. Qf6+ {[%clk 0:00:59]} 35... Ke4 {[%clk
0:01:26.7]} 36. Qxg6+ {[%clk 0:00:59.3]} 36... Ke3 {[%clk 0:01:23.8]} 37. Qxh5
{[%clk 0:00:49.7]} 37... Qd5 {[%clk 0:00:57.7]} 38. c3 {[%clk 0:00:24.6]} 38...
Rxc3 {[%clk 0:00:43.8]} 39. Qg4 {[%clk 0:00:21.2]} 39... Rc2 {[%clk 0:00:38.7]}
40. Qg3+ {[%clk 0:00:22.2]} 40... Ke2 {[%clk 0:00:37.6]} 41. f5 {[%clk 0:00:21]}
41... Rc5 {[%clk 0:00:35.2]} 42. Bf4 {[%clk 0:00:18.8]} 42... Qxf5 {[%clk
0:00:31.7]} 43. Bd6 {[%clk 0:00:19.4]} 43... Rd5 {[%clk 0:00:30.5]} 44. Bf4
{[%clk 0:00:19.3]} 44... Rd3 {[%clk 0:00:24.9]} 45. Qg5 {[%clk 0:00:20.1]} 45...
Qxg5 {[%clk 0:00:19.2]} 46. Bxg5 {[%clk 0:00:22]} 46... Kf1 {[%clk 0:00:19.3]}
47. h4 {[%clk 0:00:23.4]} 47... Ra3 {[%clk 0:00:16.7]} 48. g3 {[%clk 0:00:21.8]}
48... Rxa2+ {[%clk 0:00:17.2]} 49. Kh3 {[%clk 0:00:23]} 49... Kg1 {[%clk
0:00:14.7]} 50. h5 {[%clk 0:00:23]} 50... b5 {[%clk 0:00:12.6]} 51. h6 {[%clk
0:00:23.4]} 51... Rh2+ {[%clk 0:00:12.3]} 52. Kg4 {[%clk 0:00:24.7]} 52... b4
{[%clk 0:00:13.3]} 53. Kf5 {[%clk 0:00:25.2]} 53... Rc2 {[%clk 0:00:11.1]} 54.
Bf6 {[%clk 0:00:24.3]} 1-0

[Event "*** Titled Tuesday Blitz"]
[Site "Chess.com"]
[Date "2018.12.04"]
[Round "9"]
[White "LonesomeGeorge1"]
[Black "Bad_left_hook"]
[Result "0-1"]
[WhiteElo "2423"]
[BlackElo "2511"]
[TimeControl "180+2"]
[EndTime "15:11:29 PST"]
[Termination "Bad_left_hook won on time"]

1. d4 {[%clk 0:03:01.9]} 1... Nf6 {[%clk 0:02:59.9]} 2. Nf3 {[%clk 0:03:03]}
2... g6 {[%clk 0:03:01]} 3. c4 {[%clk 0:03:03.6]} 3... Bg7 {[%clk 0:03:01.5]} 4.
g3 {[%clk 0:03:04.1]} 4... c6 {[%clk 0:03:01.9]} 5. Bg2 {[%clk 0:03:02.1]} 5...
d5 {[%clk 0:03:02.4]} 6. cxd5 {[%clk 0:03:00.7]} 6... cxd5 {[%clk 0:03:02.9]} 7.
O-O {[%clk 0:03:02.3]} 7... O-O {[%clk 0:03:03]} 8. Ne5 {[%clk 0:03:01.9]} 8...
Ne4 {[%clk 0:02:58.8]} 9. Nd2 {[%clk 0:02:57.1]} 9... Nd7 {[%clk 0:02:58]} 10.
Nxe4 {[%clk 0:02:52.8]} 10... Nxe5 {[%clk 0:02:54.9]} 11. Nc3 {[%clk 0:02:42.9]}
11... Nc6 {[%clk 0:02:51.6]} 12. Nxd5 {[%clk 0:02:41.5]} 12... Nxd4 {[%clk
0:02:51.9]} 13. Nc3 {[%clk 0:02:13.9]} 13... Nc6 {[%clk 0:02:35.3]} 14. Bf4
{[%clk 0:02:06.6]} 14... Qa5 {[%clk 0:02:10.5]} 15. Qb3 {[%clk 0:01:52.9]} 15...
Nd4 {[%clk 0:01:57.1]} 16. Qd5 {[%clk 0:01:16.9]} 16... Qb4 {[%clk 0:01:23.3]}
17. Rab1 {[%clk 0:00:52.3]} 17... Bf5 {[%clk 0:00:32.7]} 18. e4 {[%clk
0:00:50.4]} 18... Be6 {[%clk 0:00:30.4]} 19. Qg5 {[%clk 0:00:51.3]} 19... h6
{[%clk 0:00:26.3]} 20. Qh4 {[%clk 0:00:39.4]} 20... g5 {[%clk 0:00:24.8]} 21.
Bxg5 {[%clk 0:00:40.7]} 21... hxg5 {[%clk 0:00:26.6]} 22. Qxg5 {[%clk
0:00:42.2]} 22... Qd6 {[%clk 0:00:19.2]} 23. f4 {[%clk 0:00:41.4]} 23... Qb6
{[%clk 0:00:16.8]} 24. Kh1 {[%clk 0:00:40.9]} 24... f6 {[%clk 0:00:17.3]} 25.
Qh4 {[%clk 0:00:38]} 25... Bf7 {[%clk 0:00:14.4]} 26. Rfd1 {[%clk 0:00:21.3]}
26... Rfd8 {[%clk 0:00:14.9]} 27. Nd5 {[%clk 0:00:22.6]} 27... Bxd5 {[%clk
0:00:14]} 28. exd5 {[%clk 0:00:24.5]} 28... Nf5 {[%clk 0:00:13.3]} 29. Qh3
{[%clk 0:00:23.7]} 29... Ne3 {[%clk 0:00:13.3]} 30. Be4 {[%clk 0:00:24.4]} 30...
Nxd1 {[%clk 0:00:11.4]} 31. Qh7+ {[%clk 0:00:18.2]} 31... Kf8 {[%clk 0:00:11.4]}
32. Rxd1 {[%clk 0:00:19.9]} 32... Qe3 {[%clk 0:00:09.3]} 33. Rd3 {[%clk
0:00:11.3]} 33... Qe1+ {[%clk 0:00:09]} 34. Kg2 {[%clk 0:00:12.5]} 34... e6
{[%clk 0:00:09.8]} 35. d6 {[%clk 0:00:12.3]} 35... f5 {[%clk 0:00:09.8]} 36.
Bxf5 {[%clk 0:00:11.9]} 36... Qe2+ {[%clk 0:00:07.2]} 37. Kh3 {[%clk 0:00:11.3]}
37... exf5 {[%clk 0:00:07]} 38. Qxf5+ {[%clk 0:00:12.5]} 38... Kg8 {[%clk
0:00:08.1]} 39. Qd5+ {[%clk 0:00:11.2]} 39... Kh7 {[%clk 0:00:07.8]} 40. Qf5+
{[%clk 0:00:11.3]} 40... Kg8 {[%clk 0:00:08.3]} 41. Qd5+ {[%clk 0:00:11.7]}
41... Kh8 {[%clk 0:00:08.8]} 42. Rd2 {[%clk 0:00:07.7]} 42... Qf1+ {[%clk
0:00:08.9]} 43. Kg4 {[%clk 0:00:08.7]} 43... Rf8 {[%clk 0:00:07.2]} 44. Qh5+
{[%clk 0:00:06]} 44... Kg8 {[%clk 0:00:07.3]} 45. Qd5+ {[%clk 0:00:07.3]} 45...
Rf7 {[%clk 0:00:08.2]} 46. d7 {[%clk 0:00:08.8]} 46... Rd8 {[%clk 0:00:08.8]}
47. Qe6 {[%clk 0:00:06.1]} 47... Qa6 {[%clk 0:00:07.9]} 48. Rd6 {[%clk
0:00:06.4]} 48... Qb5 {[%clk 0:00:06.4]} 49. f5 {[%clk 0:00:05.4]} 49... Rxd7
{[%clk 0:00:06.7]} 50. Qe8+ {[%clk 0:00:04.3]} 50... Kh7 {[%clk 0:00:07.7]} 51.
f6 {[%clk 0:00:02.9]} 51... Qc4+ {[%clk 0:00:06]} 52. Kh5 {[%clk 0:00:02.4]}
52... Rxd6 {[%clk 0:00:06.5]} 0-1

[Event "*** Titled Tuesday Blitz"]
[Site "Chess.com"]
[Date "2018.12.04"]
[Round "9"]
[White "zeitnot2006"]
[Black "chesstatour"]
[Result "1-0"]
[WhiteElo "2114"]
[BlackElo "2083"]
[TimeControl "180+2"]
[EndTime "15:11:49 PST"]
[Termination "zeitnot2006 won by resignation"]

1. d4 {[%clk 0:03:01.9]} 1... c6 {[%clk 0:02:58.4]} 2. c4 {[%clk 0:03:01.2]}
2... d5 {[%clk 0:03:00.3]} 3. Nf3 {[%clk 0:03:02.4]} 3... Nf6 {[%clk 0:02:57.6]}
4. e3 {[%clk 0:03:03.9]} 4... Bg4 {[%clk 0:02:57.4]} 5. Bd3 {[%clk 0:03:05.5]}
5... e6 {[%clk 0:02:58.3]} 6. Qb3 {[%clk 0:03:03.8]} 6... Qc7 {[%clk 0:02:44.5]}
7. Nh4 {[%clk 0:02:54.5]} 7... Be7 {[%clk 0:02:37.6]} 8. h3 {[%clk 0:02:55.4]}
8... Bh5 {[%clk 0:02:36.3]} 9. g4 {[%clk 0:02:55.3]} 9... Bg6 {[%clk 0:02:35.3]}
10. Nxg6 {[%clk 0:02:54.7]} 10... hxg6 {[%clk 0:02:34.2]} 11. Be2 {[%clk
0:02:56.2]} 11... Nbd7 {[%clk 0:02:13.9]} 12. Bd2 {[%clk 0:02:56.9]} 12... e5
{[%clk 0:02:14.6]} 13. cxd5 {[%clk 0:02:52]} 13... exd4 {[%clk 0:02:04.9]} 14.
exd4 {[%clk 0:02:32.5]} 14... Nxd5 {[%clk 0:01:59.5]} 15. Nc3 {[%clk 0:02:30.2]}
15... Nf4 {[%clk 0:00:48.9]} 16. O-O-O {[%clk 0:02:13.7]} 16... Nxe2+ {[%clk
0:00:44.3]} 17. Nxe2 {[%clk 0:02:12.6]} 17... Qb6 {[%clk 0:00:40.4]} 18. Qe3
{[%clk 0:01:55.4]} 18... Nf6 {[%clk 0:00:39.5]} 19. Nc3 {[%clk 0:01:50.7]} 19...
Nd5 {[%clk 0:00:36.8]} 20. Nxd5 {[%clk 0:01:47.3]} 20... cxd5 {[%clk 0:00:37]}
21. Rhe1 {[%clk 0:01:39.8]} 21... Qc7+ {[%clk 0:00:32.3]} 22. Kb1 {[%clk
0:01:38.8]} 22... Kd8 {[%clk 0:00:30]} 23. Qf3 {[%clk 0:01:30]} 23... Bf6 {[%clk
0:00:19.2]} 24. Qxd5+ {[%clk 0:01:29.6]} 24... Qd7 {[%clk 0:00:19.9]} 25. Qb3
{[%clk 0:01:22.2]} 25... Re8 {[%clk 0:00:16]} 26. Rxe8+ {[%clk 0:01:22.5]} 26...
Kxe8 {[%clk 0:00:17.3]} 27. Bb4 {[%clk 0:01:18.9]} 27... Rc8 {[%clk 0:00:14.2]}
28. d5 {[%clk 0:00:57.1]} 28... Kd8 {[%clk 0:00:14.4]} 29. d6 {[%clk 0:00:50.3]}
29... Qe6 {[%clk 0:00:11.9]} 30. Qxe6 {[%clk 0:00:49]} 30... fxe6 {[%clk
0:00:13.8]} 31. Rd3 {[%clk 0:00:41.6]} 31... Kd7 {[%clk 0:00:13.7]} 32. Bc3
{[%clk 0:00:37.3]} 32... Bxc3 {[%clk 0:00:10.9]} 33. bxc3 {[%clk 0:00:39.2]}
33... Rc6 {[%clk 0:00:11.7]} 34. Kc2 {[%clk 0:00:40.4]} 34... Rxd6 {[%clk
0:00:13.1]} 35. f4 {[%clk 0:00:32]} 35... Ke7 {[%clk 0:00:08.1]} 36. c4 {[%clk
0:00:28]} 36... Rc6 {[%clk 0:00:07.4]} 37. Kb3 {[%clk 0:00:26.4]} 37... Rc5
{[%clk 0:00:05.6]} 38. Kb4 {[%clk 0:00:24.7]} 38... b6 {[%clk 0:00:06.9]} 39.
Re3 {[%clk 0:00:22.6]} 39... Kf7 {[%clk 0:00:07.1]} 40. Re4 {[%clk 0:00:20.2]}
40... g5 {[%clk 0:00:05.8]} 41. fxg5 {[%clk 0:00:18.1]} 41... Rxg5 {[%clk
0:00:06.7]} 42. Rd4 {[%clk 0:00:19.7]} 42... Ke7 {[%clk 0:00:06.7]} 43. Kc3
{[%clk 0:00:19.6]} 43... Re5 {[%clk 0:00:07.5]} 44. Kd3 {[%clk 0:00:20.4]} 44...
Ra5 {[%clk 0:00:08.7]} 45. Ke4 {[%clk 0:00:15.5]} 45... Rxa2 {[%clk 0:00:09.3]}
46. Rd3 {[%clk 0:00:17.2]} 46... Re2+ {[%clk 0:00:09.3]} 47. Kf4 {[%clk
0:00:14.9]} 47... Rc2 {[%clk 0:00:10.1]} 48. Rd4 {[%clk 0:00:13.6]} 48... a5
{[%clk 0:00:10.2]} 49. Kg5 {[%clk 0:00:15.1]} 49... a4 {[%clk 0:00:09.4]} 50.
Kg6 {[%clk 0:00:16.1]} 50... a3 {[%clk 0:00:09.8]} 51. Rd3 {[%clk 0:00:17.1]}
51... a2 {[%clk 0:00:10.3]} 52. Ra3 {[%clk 0:00:17.5]} 52... Kd6 {[%clk
0:00:09.1]} 53. Kxg7 {[%clk 0:00:18.2]} 53... Kc5 {[%clk 0:00:10.3]} 54. g5
{[%clk 0:00:19.5]} 54... Kxc4 {[%clk 0:00:11.1]} 55. g6 {[%clk 0:00:20.2]} 55...
Kb4 {[%clk 0:00:11.9]} 56. Ra6 {[%clk 0:00:19.6]} 56... b5 {[%clk 0:00:11]} 57.
Kh7 {[%clk 0:00:18.8]} 57... Rg2 {[%clk 0:00:11.1]} 58. g7 {[%clk 0:00:19.7]}
58... Kb3 {[%clk 0:00:11.2]} 59. g8=Q {[%clk 0:00:19.9]} 59... Rxg8 {[%clk
0:00:11.6]} 60. Kxg8 {[%clk 0:00:21.8]} 60... b4 {[%clk 0:00:12.7]} 61. h4
{[%clk 0:00:22.9]} 61... Kb2 {[%clk 0:00:12.9]} 62. h5 {[%clk 0:00:23.4]} 62...
a1=Q {[%clk 0:00:14.4]} 63. Rxa1 {[%clk 0:00:23.6]} 63... Kxa1 {[%clk
0:00:16.3]} 64. h6 {[%clk 0:00:24.6]} 64... b3 {[%clk 0:00:17.4]} 65. h7 {[%clk
0:00:25.9]} 65... b2 {[%clk 0:00:18.9]} 66. h8=Q {[%clk 0:00:27]} 66... Ka2
{[%clk 0:00:19.7]} 67. Qh2 {[%clk 0:00:27.2]} 67... Ka1 {[%clk 0:00:18.7]} 68.
Qe5 {[%clk 0:00:27.5]} 68... Ka2 {[%clk 0:00:19.3]} 69. Qxe6+ {[%clk 0:00:28.4]}
69... Ka1 {[%clk 0:00:18]} 70. Qe5 {[%clk 0:00:29.2]} 70... Kb1 {[%clk
0:00:18.2]} 71. Kf7 {[%clk 0:00:29.4]} 71... Kc1 {[%clk 0:00:20.1]} 72. Qc3+
{[%clk 0:00:29.7]} 72... Kb1 {[%clk 0:00:21.4]} 73. Ke6 {[%clk 0:00:30.9]} 1-0